bitfinex/quotes_ETHUSD_20260219
["timestamp","ask_amount","ask_price","bid_price","bid_amount"]
[1771528652531,1.28528096,1945.1,1944.5,1.09206855]
[1771528653250,2.37994006,1945.1,1944.5,1.09206855]
[1771528653450,1.0946591,1945.0,1944.4,0.927]
[1771528654257,1.28541313,1944.9,1944.4,2.21273381]
[1771528654554,1.28541313,1944.9,1944.4,0.927]
[1771528655950,1.28541313,1944.9,1944.4,2.01906855]
[1771528656148,1.28534837,1945.0,1944.5,1.09206855]
[1771528656355,5.14112862,1945.1,1944.5,1.09206855]
[1771528656760,5.14112862,1945.1,1944.5,2.37772527]
[1771528657262,6.26616943,1945.1,1944.5,1.09206855]
[1771528659580,0.0011,1945.2,1944.6,1.0976529]
[1771528659870,0.927,1945.9,1944.7,0.927]
[1771528660050,1.28485694,1945.8,1944.8,1.0976529]
[1771528660363,1.12504081,1945.7,1944.8,1.0976529]
[1771528660535,1.12504081,1945.5,1944.7,0.927]
[1771528661043,0.0011,1945.0,1944.7,0.927]
[1771528661580,2.40985939,1945.8,1944.8,1.0976529]
[1771528661733,0.0011,1945.1,1944.8,1.0976529]
[1771528662132,0.0011,1945.3,1944.8,1.0976529]
[1771528663145,0.0011,1945.3,1945.0,1.0976529]
[1771528664378,1.12504081,1946.5,1945.0,1.0976529]
[1771528664944,1.12504081,1946.5,1945.3,1.0976529]
[1771528665146,1.12504081,1946.5,1945.5,1.0976529]
[1771528665372,1.28429055,1946.6,1945.5,1.0976529]
[1771528665745,2.638842,1946.4,1945.4,0.926]
[1771528665945,1.28429055,1946.6,1945.4,0.926]
[1771528665946,1.12504081,1946.3,1945.4,0.926]
[1771528667274,2.40959532,1946.2,1945.5,1.2850167]
[1771528669148,2.40972734,1946.0,1945.4,0.926]
[1771528669359,2.40972734,1946.0,1945.4,2.21107285]
[1771528669558,2.40972734,1946.0,1945.4,3.30872575]
[1771528669765,2.40972734,1946.0,1945.4,2.0236529]
[1771528670272,1.12460899,1945.9,1945.4,0.926]
[1771528670971,1.12415716,1945.8,1944.9,2.38303597]
[1771528671152,1.12415716,1945.7,1944.9,2.38303597]
[1771528671355,1.28495065,1945.6,1944.7,1.0976529]
[1771528671553,1.12415716,1945.5,1944.7,1.0976529]
[1771528672369,1.28495065,1945.6,1944.6,2.21155789]
[1771528672370,1.12371435,1945.3,1944.6,2.21160486]
[1771528672969,1.12371435,1945.3,1944.6,0.926]
[1771528673167,1.12371435,1945.3,1944.5,0.001]
[1771528673383,2.40862465,1945.0,1944.5,0.001]
[1771528673563,1.12327761,1944.9,1944.4,0.001]
[1771528673970,1.12327761,1944.9,1944.5,0.001]
[1771528676452,1.28547922,1944.8,1944.5,0.001]
[1771528678457,1.11921958,1944.7,1944.2,0.001]
[1771528680962,1.28561143,1944.6,1944.2,0.001]
[1771528681476,2.40330653,1944.6,1944.2,0.001]
[1771528681988,1.11730852,1945.1,1944.2,1.16358217]
[1771528683189,1.28534704,1945.0,1944.4,1.16258217]
[1771528685594,1.28534704,1945.0,1944.4,2.44832569]
[1771528686293,1.28534704,1945.0,1944.5,0.001]
[1771528688470,1.28534704,1945.0,1944.5,1.1028412]
[1771528689194,2.01632563,1945.3,1944.5,1.1028412]
[1771528689499,5.1408803,1945.2,1944.5,1.1028412]
[1771528689697,1.28521488,1945.2,1944.7,1.1018412]
[1771528689914,1.09032563,1945.1,1944.5,1.1028412]
[1771528690080,1.09032563,1945.1,1944.5,0.001]
[1771528691772,1.28534704,1945.0,1944.5,1.1028412]
[1771528692574,2.29,1945.2,1944.5,1.1028412]
[1771528693473,2.21117512,1945.3,1944.5,1.1028412]
[1771528693880,2.21117512,1945.3,1944.7,1.1018412]
[1771528695171,2.37550075,1945.3,1944.7,1.1018412]
[1771528695377,1.28517512,1945.3,1944.7,1.1018412]
[1771528696002,1.09032563,1945.3,1944.5,1.1028412]
[1771528698185,2.37554051,1945.2,1944.5,1.1028412]
[1771528698385,2.37664051,1945.2,1944.5,1.1028412]
[1771528698905,1.09032563,1945.1,1944.5,1.1028412]
[1771528701109,0.0011,1945.2,1944.6,1.1018412]
[1771528701607,1.09142563,1945.2,1944.6,1.1018412]
[1771528702316,1.09142563,1945.2,1944.5,0.001]
[1771528702488,1.09032563,1945.0,1944.5,0.001]
[1771528703085,1.09032563,1944.9,1944.5,0.001]
[1771528703283,1.09032563,1944.8,1944.4,0.001]
[1771528705593,1.28554532,1944.7,1944.4,0.001]
[1771528706111,5.14208263,1945.2,1944.4,1.1028412]
[1771528706112,2.37567267,1945.0,1944.4,1.1028412]
[1771528707207,2.41497,1944.9,1944.4,1.1028412]
[1771528707611,1.28547922,1944.8,1944.4,1.1028412]
[1771528709108,1.28545324,1944.9,1944.5,1.1018412]
[1771528709688,6.2318395,1945.0,1944.5,1.1018412]
[1771528709883,6.2318395,1945.0,1944.4,1.1028412]
[1771528710785,1.09032563,1944.9,1944.4,1.1028412]
[1771528711811,1.28547922,1944.8,1944.4,1.1028412]
[1771528712215,1.28547922,1944.8,1944.5,0.001]
[1771528713393,2.37577733,1944.9,1944.5,0.001]
[1771528715194,5.14259478,1945.0,1944.5,1.1028412]
[1771528715396,1.28644704,1945.0,1944.5,1.1028412]
[1771528716209,0.0011,1945.0,1944.6,1.1018412]
[1771528718948,1.10571444,1945.0,1944.6,1.1018412]
[1771528719535,1.10571444,1945.0,1944.5,0.001]
[1771528720804,1.10571444,1945.0,1944.4,1.14038716]
[1771528721426,2.42611009,1944.9,1944.4,1.14038716]
[1771528722741,1.14069696,1944.8,1944.2,2.42623584]
[1771528723755,1.28554532,1944.7,1944.3,1.14038716]
[1771528724249,6.28264758,1944.8,1944.3,1.14038716]
[1771528724448,2.42617618,1944.8,1944.3,1.14038716]
[1771528724617,1.28545323,1944.9,1944.3,1.14038716]
[1771528724815,2.42615019,1944.9,1944.3,1.14038716]
[1771528726051,2.42615019,1944.9,1944.4,2.42613083]
[1771528726240,2.42615019,1944.9,1944.4,1.14038716]
[1771528726653,2.42615019,1944.9,1944.5,0.001]
[1771528726953,2.42725019,1944.9,1944.5,0.001]
[1771528727439,1.14069696,1944.8,1944.5,0.001]
[1771528728333,2.42624228,1944.7,1944.5,0.001]
[1771528729225,1.14069696,1944.7,1944.5,0.001]
[1771528730854,1.28547922,1944.8,1944.5,0.001]
[1771528731554,1.28656242,1944.9,1944.5,1.14138716]
[1771528731753,0.0011,1944.9,1944.5,1.14138716]
[1771528732557,0.0011,1944.9,1944.6,1.14038716]
[1771528733053,1.14179696,1944.9,1944.5,0.001]
[1771528734060,1.14179696,1944.9,1944.4,1.14138716]
[1771528734061,1.14069696,1944.6,1944.4,0.001]
[1771528734857,2.42635777,1944.6,1944.4,0.001]
[1771528735063,1.14069696,1944.6,1944.4,0.001]
[1771528735267,1.28555378,1944.7,1944.4,0.001]
[1771528735762,2.42625074,1944.7,1944.4,0.001]
[1771528737157,1.14069696,1944.6,1944.4,0.001]
[1771528738380,1.14069696,1944.6,1944.0,0.001]
[1771528738544,1.14069696,1944.2,1943.8,0.001]
[1771528739258,1.14069696,1944.0,1943.8,0.001]
[1771528740759,1.28583291,1944.3,1943.8,1.14138716]
[1771528740942,1.14069696,1944.5,1943.8,1.14138716]
[1771528740943,2.42637451,1944.5,1943.8,1.14138716]
[1771528741144,2.42637451,1944.5,1944.0,1.16137739]
[1771528742164,2.42637451,1944.5,1944.0,0.001]
[1771528742165,1.12346099,1944.3,1944.0,0.001]
[1771528742461,1.12346099,1944.1,1944.0,0.001]
[1771528742844,1.12346099,1944.1,1943.8,0.001]
[1771528743444,1.28600823,1944.0,1943.8,0.001]
[1771528744964,1.12346099,1943.9,1943.6,0.001]
[1771528745163,1.12346099,1943.9,1943.2,1.28650779]
[1771528745164,1.12346099,1943.9,1943.0,2.08737739]
[1771528745375,1.12346099,1943.6,1942.8,1.16137739]
[1771528745678,1.12346099,1943.6,1942.8,0.001]
[1771528745846,30.0,1943.1,1942.6,0.001]
[1771528746045,2.05046099,1943.2,1942.6,0.001]
[1771528746245,4.992531,1943.1,1942.6,0.001]
[1771528746445,1.12346099,1943.0,1942.6,0.001]
[1771528747141,1.12346099,1943.0,1942.4,0.001]
[1771528747673,1.12346099,1943.0,1941.8,5.14959644]
[1771528747674,25.19562157,1942.5,1941.7,1.12520306]
[1771528747972,1.15999957,1942.3,1941.5,1.12520306]
[1771528748383,4.80091,1942.4,1941.5,1.12520306]
[1771528749259,1.15999957,1942.4,1941.5,1.12520306]
[1771528749460,14.864904,1942.3,1941.5,1.12520306]
[1771528749775,1.28720008,1942.2,1941.5,2.4128604]
[1771528750151,2.44711469,1942.4,1941.6,1.12520306]
[1771528750950,0.927,1942.5,1941.6,1.12520306]
[1771528752377,1.28679048,1942.9,1941.8,1.12520306]
[1771528752579,7.07073557,1942.8,1941.8,1.12520306]
[1771528752787,1.15999957,1942.8,1941.8,1.12520306]
[1771528753451,5.14694528,1943.1,1941.8,1.12520306]
[1771528753452,2.44660345,1943.1,1941.8,1.12520306]
[1771528753765,6.94404508,1943.8,1941.8,1.12520306]
[1771528753766,1.28647146,1943.3,1941.8,1.12520306]
[1771528754077,2.44644403,1943.4,1941.8,1.12520306]
[1771528754262,2.44644403,1943.4,1942.0,1.12520306]
[1771528754457,2.44644403,1943.4,1942.2,1.12520306]
[1771528756276,1.15999957,1943.4,1942.2,1.12520306]
[1771528756493,0.927,1943.5,1942.4,1.12520306]
[1771528756757,1.15999957,1943.4,1942.1,1.12520306]
[1771528756951,1.24191957,1943.2,1941.9,2.41257799]
[1771528757152,1.15999957,1943.0,1941.9,2.41257799]
[1771528757357,1.15999957,1942.8,1941.9,2.41257799]
[1771528757557,1.15999957,1943.1,1942.0,1.12520306]
[1771528757861,3.95784257,1943.0,1942.0,1.12520306]
[1771528758066,12.716074,1942.9,1942.0,1.12520306]
[1771528758679,1.28680255,1942.8,1942.2,1.12520306]
[1771528758881,2.44653723,1943.3,1942.2,1.12520306]
[1771528759082,7.626419,1943.1,1942.2,1.12520306]
[1771528759284,2.644469,1943.1,1942.2,1.12520306]
[1771528759493,2.44653723,1943.2,1942.2,1.12520306]
[1771528761684,1.28653766,1943.2,1942.4,1.12520306]
[1771528762788,2.44653723,1943.2,1942.4,1.12520306]
[1771528765596,2.44653723,1943.2,1942.5,2.41220434]
[1771528766094,0.0011,1943.1,1942.5,2.41220434]
[1771528766293,1.15999957,1943.0,1942.3,0.001]
[1771528766505,1.15999957,1942.7,1942.3,0.001]
[1771528767674,1.28693503,1942.6,1942.3,0.001]
[1771528770298,6.30773971,1942.7,1942.3,0.001]
[1771528770299,2.44689172,1942.7,1942.3,0.001]
[1771528770506,1.28689215,1942.7,1942.3,0.001]
[1771528771181,1.28676397,1942.9,1942.3,1.12620306]
[1771528772585,1.15999957,1942.8,1942.3,0.001]
[1771528774613,1.28671784,1943.0,1942.4,1.12520306]
[1771528775486,2.44671741,1943.0,1942.4,1.12520306]
[1771528775698,20.84621757,1942.9,1942.3,0.001]
[1771528775986,1.15999957,1942.9,1942.3,0.001]
[1771528776189,30.0,1942.8,1942.3,0.001]
[1771528776411,1.15999957,1942.7,1942.3,0.001]
[1771528776990,1.28693503,1942.6,1942.3,0.001]
[1771528777914,1.28684648,1942.8,1942.3,1.16746491]
[1771528780004,2.39635953,1942.9,1942.3,2.45458408]
[1771528780322,3.750286,1942.8,1942.3,1.16746491]
[1771528782045,2.487512,1942.8,1942.4,1.16646491]
[1771528782196,1.28667009,1943.0,1942.4,1.16646491]
[1771528784138,2.39732709,1943.1,1942.5,1.28700128]
[1771528784294,2.39732709,1943.1,1942.5,2.45346619]
[1771528784620,2.39732709,1943.1,1942.6,1.16646491]
[1771528784921,0.0011,1943.1,1942.6,1.16646491]
[1771528785920,1.11072321,1943.1,1942.6,1.16646491]
[1771528786119,1.28667009,1943.0,1942.6,1.16646491]
[1771528786620,16.901665,1942.9,1942.4,1.16646491]
[1771528786821,3.693391,1942.9,1942.4,1.16646491]
[1771528789725,1.28675399,1942.9,1942.4,2.45350212]
[1771528789926,1.28675399,1942.9,1942.5,1.16646491]
[1771528790898,3.695991,1942.9,1942.5,1.16646491]
[1771528791100,3.697091,1942.9,1942.5,1.16646491]
[1771528791398,0.0011,1942.9,1942.6,1.16646491]
[1771528792330,0.0011,1943.1,1942.7,1.16646491]
[1771528792502,1.28770785,1943.1,1942.7,1.16646491]
[1771528793425,0.0011,1943.1,1942.7,1.16646491]
[1771528793632,0.0011,1943.1,1942.7,2.45333099]
[1771528793922,0.0011,1943.1,1942.8,1.16646491]
[1771528796234,0.0011,1943.4,1942.9,1.16646491]
[1771528796533,2.39713884,1943.4,1942.9,1.16646491]
[1771528796708,1.10962321,1943.3,1942.7,1.16646491]
[1771528798339,2.39616087,1943.2,1942.7,1.16646491]
[1771528800359,1.10962321,1943.1,1942.4,2.21606375]
[1771528800536,1.10962321,1943.1,1942.5,1.16646491]
[1771528801058,1.28653766,1943.2,1942.5,1.16646491]
[1771528801233,2.37541576,1943.2,1942.5,1.16646491]
[1771528802719,1.28653766,1943.2,1942.6,1.20282599]
[1771528802953,1.0888781,1943.1,1942.6,1.20282599]
[1771528804635,1.0888781,1943.1,1942.6,1.20382599]
[1771528804824,2.37662757,1943.1,1942.6,1.20382599]
[1771528806251,2.37662757,1943.1,1942.6,2.49075032]
[1771528806555,2.37662757,1943.1,1942.7,1.20282599]
[1771528806753,0.0011,1943.2,1942.7,1.19614259]
[1771528807052,0.0011,1943.4,1942.9,1.19614259]
[1771528808326,1.09554709,1943.8,1942.9,1.19614259]
[1771528808327,0.0011,1943.8,1942.9,1.19614259]
[1771528809124,0.0011,1943.8,1943.1,1.19614259]
[1771528809954,0.0011,1943.8,1943.2,1.19614259]
[1771528811336,0.0011,1943.8,1943.4,1.19614259]
[1771528811925,0.0011,1943.9,1943.4,1.19614259]
[1771528813352,0.0011,1943.9,1943.6,1.19614259]
[1771528813558,0.0011,1943.9,1943.4,1.19614259]
[1771528813725,0.0011,1943.9,1943.1,6.07336998]
[1771528813726,1.09554709,1943.9,1943.1,3.40974647]
[1771528815661,2.38166182,1943.9,1943.2,1.19614259]
[1771528815961,1.09444709,1943.8,1943.2,1.19614259]
[1771528817232,1.28721473,1943.9,1943.2,1.19614259]
[1771528817539,0.0011,1943.8,1943.3,2.48261405]
[1771528817736,1.09554709,1943.8,1943.3,1.28647146]
[1771528818164,1.09554709,1943.8,1943.2,2.4826315]
[1771528818363,1.09554709,1943.8,1943.1,2.21356095]
[1771528818733,1.09554709,1943.8,1943.1,3.40970354]
[1771528819032,1.09554709,1943.8,1943.2,1.19614259]
[1771528819862,1.09554709,1943.8,1943.3,2.48261405]
[1771528820248,1.09444709,1943.7,1943.2,1.28648676]
[1771528820763,1.09444709,1943.7,1943.2,2.48262935]
[1771528821241,0.0011,1943.8,1943.3,1.19614259]
[1771528821646,3.07634773,1943.8,1943.3,1.19614259]
[1771528822048,3.07634773,1943.8,1943.4,2.48254785]
[1771528824248,3.07634773,1943.8,1943.5,1.19614259]
[1771528824862,4.17079482,1943.8,1943.3,2.48258358]
[1771528825163,3.07524773,1943.7,1943.3,2.48258358]
[1771528825369,0.0011,1943.8,1943.4,1.19614259]
[1771528826240,0.0011,1943.8,1943.5,2.48248166]
[1771528826440,0.0011,1943.8,1943.6,1.19614259]
[1771528826665,0.0011,1944.1,1943.5,1.28633907]
[1771528826973,0.0011,1944.1,1943.6,1.19614259]
[1771528828347,0.0011,1944.1,1943.8,1.19614259]
[1771528829560,0.0011,1944.0,1943.8,1.19614259]
[1771528830552,0.0011,1944.0,1943.9,1.28607438]
[1771528830954,0.0011,1944.0,1943.9,2.48221697]
[1771528834388,0.0011,1944.0,1943.9,1.28607438]
[1771528834590,1.09554709,1944.0,1943.5,1.19614259]
[1771528835175,1.09554709,1944.0,1943.3,1.28747083]
[1771528835377,1.09554709,1944.0,1943.3,1.2874628]
[1771528836089,1.09554709,1944.0,1943.3,2.48360539]
[1771528836995,2.456525,1943.9,1943.3,2.48360539]
[1771528837380,3.08061518,1943.8,1943.3,2.48360539]
[1771528837695,4.2510658,1943.7,1943.3,0.001]
[1771528837903,3.08061518,1943.6,1943.3,0.001]
[1771528838674,4.2510658,1943.6,1943.3,0.001]
[1771528838886,3.08061518,1943.5,1943.3,0.001]
[1771528840590,1.17045062,1943.3,1943.0,0.001]
[1771528840788,1.17045062,1943.1,1942.7,0.001]
[1771528841003,1.17045062,1943.6,1942.9,1.28673632]
[1771528841302,3.08064314,1943.5,1943.0,1.10422609]
[1771528841473,3.08064314,1943.4,1943.0,1.10422609]
[1771528841674,1.17045062,1943.6,1943.0,1.10422609]
[1771528841875,2.89533079,1943.5,1943.0,1.10422609]
[1771528842179,4.06578141,1943.5,1943.0,1.10422609]
[1771528842501,2.89533079,1943.4,1943.0,1.10422609]
[1771528842703,4.06578141,1943.4,1942.9,1.28673632]
[1771528842900,1.17045062,1943.4,1942.9,1.28673632]
[1771528843106,1.17045062,1943.4,1943.3,0.001]
[1771528843602,4.0649199,1943.4,1943.3,0.001]
[1771528843974,5.35132516,1943.4,1943.3,0.001]
[1771528844170,4.0649199,1943.4,1943.3,0.001]
[1771528844782,1.17045062,1943.3,1943.1,0.001]
[1771528846584,1.17045062,1943.5,1943.1,0.001]
[1771528846792,6.07194735,1943.7,1943.1,1.10522609]
[1771528846793,2.89274569,1943.4,1943.1,1.10522609]
[1771528846985,1.17045062,1943.5,1943.1,0.001]
[1771528847190,2.89253314,1943.4,1943.1,0.001]
[1771528848180,1.17045062,1943.5,1943.1,0.001]
[1771528848381,2.09745062,1943.7,1943.1,1.10522609]
[1771528848703,2.89189427,1943.6,1943.1,1.10522609]
[1771528849605,1.17045062,1943.4,1943.1,0.001]
[1771528850707,1.17045062,1943.6,1943.1,0.001]
[1771528850908,2.89141573,1943.5,1943.1,0.001]
[1771528851583,2.89141573,1943.5,1943.1,1.28760388]
[1771528852981,2.89141573,1943.5,1943.2,1.10422609]
[1771528853313,0.927,1943.7,1943.2,1.10422609]
[1771528853616,0.0011,1943.9,1943.4,1.10422609]
[1771528854186,1.17155062,1943.9,1943.4,1.10422609]
[1771528855616,1.17155062,1943.9,1943.3,1.28647146]
[1771528855617,1.28723303,1943.9,1943.3,1.28647146]
[1771528855913,1.17045062,1943.6,1943.1,1.28756838]
[1771528856503,1.17045062,1943.6,1943.2,0.001]
[1771528857807,1.28625078,1943.7,1943.2,0.001]
[1771528858205,0.0011,1943.8,1943.2,1.10522609]
[1771528858408,2.89254601,1943.8,1943.2,1.10522609]
[1771528858592,0.0011,1943.8,1943.2,1.10522609]
[1771528859209,2.89312127,1943.8,1943.2,1.10522609]
[1771528859491,0.0011,1943.8,1943.2,1.10522609]
[1771528859689,0.0011,1943.8,1943.3,2.39069755]
[1771528859921,0.0011,1943.8,1943.4,1.10422609]
[1771528861227,2.89461164,1943.8,1943.4,1.10422609]
[1771528861521,1.10463654,1943.6,1943.2,0.001]
[1771528861722,1.10463654,1943.5,1943.2,0.001]
[1771528862115,1.10463654,1943.3,1943.0,0.001]
[1771528862291,1.28630882,1943.6,1942.9,0.001]
[1771528862292,1.10463654,1943.1,1942.9,0.001]
[1771528862496,4.00087874,1943.0,1942.7,0.001]
[1771528862798,4.00087874,1943.0,1942.5,0.001]
[1771528862799,1.10463654,1942.8,1942.5,0.001]
[1771528863112,4.00087874,1942.7,1942.5,0.001]
[1771528863311,1.10463654,1942.5,1942.2,0.001]
[1771528863513,2.90431755,1942.4,1942.3,0.005]
[1771528863700,1.10463654,1942.7,1942.3,0.005]
[1771528864134,1.10463654,1942.9,1942.3,0.005]
[1771528864828,1.10463654,1942.8,1942.3,0.005]
[1771528865425,1.10463654,1942.6,1942.3,0.001]
[1771528866406,1.2868448,1942.8,1942.4,0.004]
[1771528866733,1.10463654,1942.8,1942.4,0.004]
[1771528867307,30.0,1942.9,1942.4,0.004]
[1771528869219,2.38216235,1942.9,1942.4,0.004]
[1771528869741,30.0,1942.9,1942.4,1.08284814]
[1771528869918,0.927,1943.0,1942.4,1.08284814]
[1771528870114,3.30910001,1943.0,1942.4,0.004]
[1771528870535,2.02241844,1943.0,1942.4,0.004]
[1771528871329,2.02241844,1943.0,1942.5,0.001]
[1771528871715,2.02241844,1943.0,1942.6,0.004]
[1771528872137,2.02241844,1943.0,1942.7,0.004]
[1771528872333,2.02241844,1943.0,1942.6,0.004]
[1771528873651,1.09541844,1942.9,1942.6,0.004]
[1771528873867,1.28667276,1943.0,1942.4,0.001]
[1771528873868,14.01211144,1942.7,1942.4,0.001]
[1771528874169,1.09541844,1942.7,1942.4,0.001]
[1771528874817,1.09541844,1942.6,1942.4,0.001]
[1771528875146,1.09541844,1942.6,1942.2,0.001]
[1771528875448,6.546167,1942.4,1942.2,0.001]
[1771528875747,1.09541844,1942.5,1942.2,0.001]
[1771528876063,1.2869301,1942.7,1942.1,0.001]
[1771528876064,9.15133744,1942.4,1942.1,0.001]
[1771528876230,1.09541844,1942.3,1942.1,0.001]
[1771528876847,2.38261852,1942.2,1942.1,0.001]
[1771528877048,1.09541844,1942.1,1941.2,6.23013618]
[1771528877218,1.28720008,1942.2,1941.2,6.23013618]
[1771528877219,26.002644,1941.9,1941.2,6.23013618]
[1771528877420,1.09541844,1942.0,1941.2,6.23013618]
[1771528877621,7.441504,1942.1,1941.3,1.07884814]
[1771528878354,2.38261852,1942.2,1941.3,1.07884814]
[1771528878654,3.1509,1942.1,1941.3,1.07884814]
[1771528878823,2.38261852,1942.2,1941.4,2.36657864]
[1771528879167,2.38261852,1942.2,1941.5,1.07884814]
[1771528879545,7.369708,1942.3,1941.5,1.07884814]
[1771528880066,2.38253187,1942.4,1941.5,1.07884814]
[1771528880067,1.09541844,1942.2,1941.5,1.07884814]
[1771528880348,1.09541844,1942.2,1941.4,1.2877305]
[1771528881167,2.3826848,1942.1,1941.3,6.22977015]
[1771528881741,1.09541844,1941.9,1941.3,2.36664497]
[1771528882330,1.09541844,1941.7,1941.1,2.21492826]
[1771528882540,1.09541844,1941.7,1941.1,2.21491426]
[1771528882839,2.21526636,1942.1,1941.2,1.07884814]
[1771528882840,1.09541844,1942.0,1941.2,1.07884814]
[1771528883035,0.928,1942.1,1941.2,1.07884814]
[1771528883357,0.928,1942.1,1941.4,1.07884814]
[1771528883767,3.31070888,1942.1,1941.4,1.07884814]
[1771528883932,3.31070888,1942.1,1941.5,0.001]
[1771528883933,2.02341844,1942.1,1941.5,0.001]
[1771528884545,3.31069028,1942.1,1941.5,0.001]
[1771528885150,2.02341844,1942.1,1941.5,0.001]
[1771528885350,2.02341844,1942.1,1941.5,1.28866417]
[1771528885829,0.928,1942.1,1941.6,1.07884814]
[1771528886033,0.928,1942.1,1941.5,1.28866417]
[1771528886034,2.02341844,1942.1,1941.5,1.28866417]
[1771528886454,2.02341844,1942.1,1941.5,2.36751231]
[1771528887433,0.928,1942.1,1941.5,1.28866417]
[1771528887633,0.928,1942.1,1941.6,1.07884814]
[1771528889562,0.928,1942.1,1941.7,1.28753154]
[1771528889765,2.02341844,1942.1,1941.6,1.28754806]
[1771528890638,0.928,1942.1,1941.6,2.3663962]
[1771528890838,0.928,1942.1,1941.7,1.07884814]
[1771528891242,2.38257959,1942.3,1941.7,1.07884814]
[1771528891688,1.09541844,1942.3,1941.8,1.28746523]
[1771528891866,2.38255767,1942.3,1941.8,1.28746523]
[1771528892160,1.09541844,1942.4,1941.8,1.28746523]
[1771528892549,1.09541844,1942.4,1941.5,1.07984814]
[1771528892749,1.09541844,1942.2,1941.5,2.36749374]
[1771528894062,2.3826848,1942.1,1941.5,2.36749374]
[1771528894751,1.09541844,1942.0,1941.5,2.36749374]
[1771528895495,1.09541844,1942.0,1941.5,0.001]
[1771528895774,1.28726636,1942.1,1941.2,0.001]
[1771528895775,1.09541844,1941.8,1941.2,0.001]
[1771528895961,1.09541844,1941.6,1940.7,2.36701088]
[1771528896268,26.32829544,1941.5,1940.8,1.07884814]
[1771528896676,2.38308995,1941.5,1940.8,1.07884814]
[1771528897481,1.09541844,1941.5,1941.4,0.001]
[1771528897651,1.08598855,1941.4,1940.6,1.17001178]
[1771528897851,1.08598855,1941.4,1941.2,0.001]
[1771528898163,1.08598855,1941.4,1940.6,2.45826334]
[1771528898338,2.37378538,1941.3,1940.6,2.45826334]
[1771528898542,1.08598855,1941.3,1940.7,1.17001178]
[1771528899543,2.37370394,1941.5,1940.7,1.17001178]
[1771528899871,1.08598855,1941.7,1940.7,1.17001178]
[1771528900079,2.37352141,1941.7,1940.7,1.17001178]
[1771528900280,1.08598855,1941.5,1940.7,1.17001178]
[1771528900446,1.08598855,1941.4,1940.8,2.45814038]
[1771528900647,1.08598855,1941.4,1940.7,1.28814636]
[1771528901670,1.08598855,1941.4,1940.7,2.45815814]
[1771528903379,2.37372595,1941.4,1940.8,1.17001178]
[1771528903584,2.37362144,1941.6,1940.8,1.17001178]
[1771528903755,1.08598855,1941.6,1940.8,1.17001178]
[1771528904082,1.28757504,1941.7,1940.8,1.17001178]
[1771528904653,2.37349091,1941.8,1940.8,1.17001178]
[1771528905455,1.08598855,1941.7,1940.9,1.28806223]
[1771528905652,1.08598855,1941.7,1941.0,1.17001178]
[1771528907354,2.21537885,1942.0,1941.0,1.17001178]
[1771528908066,3.30132559,1942.0,1941.2,1.17001178]
[1771528908461,2.01398855,1942.0,1941.2,1.17001178]
[1771528908649,3.30132474,1942.0,1941.2,1.17001178]
[1771528908854,0.0011,1942.1,1941.2,1.17001178]
[1771528909555,2.37438109,1942.1,1941.2,1.17001178]
[1771528909956,1.08598855,1942.0,1941.3,2.45780861]
[1771528910184,1.08598855,1942.0,1941.1,1.17001178]
[1771528910365,6.760304,1941.7,1941.1,1.17101178]
[1771528910577,1.08598855,1941.7,1941.1,1.17101178]
[1771528911876,1.28759785,1941.6,1941.1,2.45892657]
[1771528912193,1.28759785,1941.6,1941.1,0.001]
[1771528912397,1.08598855,1941.5,1941.1,0.001]
[1771528913371,1.08598855,1941.7,1941.1,2.4589302]
[1771528913572,2.37352747,1941.7,1941.1,2.4589302]
[1771528913895,2.37365272,1941.5,1941.1,0.001]
[1771528914099,1.08598855,1941.4,1941.1,0.001]
[1771528915311,1.08598855,1941.6,1941.1,0.001]
[1771528916488,1.08598855,1941.6,1941.1,1.28892952]
[1771528918603,2.37359403,1941.6,1941.1,0.001]
[1771528918808,1.08598855,1941.5,1941.1,0.001]
[1771528920104,5.15039142,1941.8,1941.1,0.001]
[1771528920105,1.08598855,1941.8,1941.1,1.17101178]
[1771528920982,0.0011,1941.9,1941.3,1.17001178]
[1771528921810,1.1421864,1941.8,1941.2,1.28786317]
[1771528922007,1.1421864,1941.8,1941.1,1.28892928]
[1771528922199,1.1421864,1941.8,1941.1,0.001]
[1771528923011,1.1421864,1941.6,1941.1,0.001]
[1771528924710,0.0011,1941.9,1941.1,1.08509227]
[1771528924909,0.0011,1941.9,1941.4,2.37182277]
[1771528925103,0.0011,1941.8,1941.4,2.37182277]
[1771528925304,0.0011,1941.8,1941.5,1.08409227]
[1771528925507,0.0011,1941.9,1941.4,1.2877305]
[1771528925817,1.1432864,1941.9,1941.2,0.001]
[1771528926311,1.1432864,1941.9,1941.2,1.28885695]
[1771528926518,1.1432864,1941.9,1941.2,2.37294922]
[1771528926923,0.0011,1941.9,1941.4,1.2877305]
[1771528927086,0.0011,1941.9,1941.4,2.39525021]
[1771528927614,0.0011,1941.9,1941.5,1.10751971]
[1771528928889,0.0011,1941.9,1941.6,1.28759785]
[1771528929086,0.0011,1941.9,1941.6,2.39511756]
[1771528929289,0.0011,1941.9,1941.7,1.10751971]
[1771528930107,0.0011,1942.4,1941.9,1.10751971]
[1771528930423,0.0011,1942.6,1941.8,1.10751971]
[1771528930621,0.0011,1942.8,1941.9,1.10751971]
[1771528931010,0.0011,1942.8,1942.0,1.28733264]
[1771528931225,0.0011,1942.8,1942.1,1.10751971]
[1771528932822,0.0011,1943.3,1942.3,1.10751971]
[1771528933029,1.28757357,1943.3,1942.3,1.10751971]
[1771528933239,0.0011,1943.3,1942.5,1.10751971]
[1771528935210,0.0011,1943.3,1942.6,1.28693503]
[1771528935406,0.0011,1943.3,1942.7,1.10751971]
[1771528936446,0.0011,1943.3,1942.4,2.39453688]
[1771528936447,1.05478577,1943.3,1942.4,2.39453688]
[1771528936752,1.05478577,1943.3,1942.4,1.28701717]
[1771528936918,1.05368577,1943.1,1942.3,2.21509562]
[1771528937318,1.05368577,1942.9,1942.3,2.21509562]
[1771528937527,1.05368577,1942.9,1941.9,1.28735439]
[1771528937713,1.05368577,1942.7,1941.8,2.39493658]
[1771528938610,1.05368577,1942.7,1941.8,1.28741687]
[1771528939432,2.3406208,1942.6,1941.6,6.25786474]
[1771528939811,2.3406208,1942.6,1941.7,1.10751971]
[1771528940012,2.21476727,1942.9,1941.8,1.10751971]
[1771528940207,3.26845304,1942.9,1941.8,1.10751971]
[1771528940408,21.064474,1942.7,1941.8,1.10751971]
[1771528940641,1.05368577,1942.7,1941.8,1.10751971]